{"text_format":"1","workbook":"xlsx","n_sheets":1,"sheets":["Ideal Gas"],"not_rendered":{"charts":0,"images":0,"macros":1,"external_links":0,"defined_names":0,"comments":0,"pivot_tables":0},"unopened":[],"bounds":{"document_bytes":16777216,"sheet_cells":100000,"rows_first":2000,"rows_last":500,"rows_between":2000,"halvings":0,"cell_chars":16384,"cell_head_chars":4096},"cells_cut":0,"cells_raw":0,"read":"whole","date_system":"1900"}

{"sheet":"Ideal Gas","index":0,"n_rows":34,"n_cols":16,"rows_kept":34,"cut":false,"hidden":false,"merged":[[24,9,27,15],[13,2,13,7],[13,9,16,15]]}
[null,"Thermodynamics I Project "]
[]
[null,"Ideal Gas Properties of Three Gases"]
[null,"Gas","O2",null,null,"Gas",null,null,null,"Gas"]
[null,"T",300,"K",null,"T",null,"K",null,"T",null,"K"]
[null,"Cp",{"$f":"igas(C$4,B6,C$5)","v":0.91775793369999992},"kJ/kg-K",null,"Cp",null,"kJ/kg-K",null,"Cp",null,"kJ/kg-K"]
[null,"h",null,"kJ/kg",null,"h",null,"kJ/kg",null,"h",null,"kJ/kg"]
[null,"u",null,"kJ/kg",null,"u",null,"kJ/kg",null,"u",null,"kJ/kg"]
[null,"s0",null,"kJ/kg-K",null,"s0",null,"kJ/kg-K",null,"s0",null,"kJ/kg-K"]
[" ","Pr",null,null,null,"Pr",null,null,null,"Pr"]
[null,"Vr",null,null,null,"Vr",null,null,null,"Vr"]
[]
[null,"Ideal Gas Table"]
[null,"Gas","O2",null,null,null,null,null,null,"Homework Problem #1: A piston cylinder assembly contains a fixed amount of a gas at a given temperature and pressure.  The gas is brought to a final given temperature at constant pressure.  Determine the heat transfer during the process."]
[null,"T","Cp","h","u","s0","Pr","Vr"]
[null,"(K)","(kJ/kg-K)","(kJ/kg)","(kJ/kg)","(kJ/kg-K)"]
[null,300,{"$f":"igas($C$14,C$15,$B17)","v":0.91775793369999992}]
[null,350,{"$f":"igas($C$14,C$15,$B18)","v":0.92890359766093744},null,null,null,null,null,null,"Given",null,null,null,"Find"]
[null,400,0.94205352020000011,null,null,null,null,null,null,"Gas=","O2",null,null,"u1=",null,"kJ/kg"]
[null,450,0.95651984772343746,null,null,null,null,null,null,"m=",2.5,"kg",null,"u2=",null,"kJ/kg"]
[null,500,0.97169875000000006,null,null,null,null,null,null,"T1=",325,"K",null,"DU=",null,"kJ"]
[null,550,0.98707042016093727,null,null,null,null,null,null,"P1=",250,"kPa",null,"W=",null,"kJ"]
[null,600,1.0021990746999998,null,null,null,null,null,null,"T2=",925,"K",null,"Q=",null,"kJ"]
[null,650,1.0167329534734375]
[null,700,1.0304043196999999,null,null,null,null,null,null,"Homework Problem #2: A piston cylinder assembly contains a fixed amount of a gas at a given temperature and pressure.  For a specified quanity of heat transfer to the system, determine the final temperature given that it is a constant pressure process."]
[null,750,1.0430294599609378]
[null,800,1.0545086841999998]
[null,850,1.0648263257234376]
[null,900,1.0740507412,null,null,null,null,null,null,"Given",null,null,null,"Find"]
[null,950,1.0823343106609375,null,null,null,null,null,null,"Gas=","O2",null,null,"Dh=",null,"kJ/kg"]
[null,1000,{"$f":"igas($C$14,C$15,$B31)","v":1.0899134375000001},null,null,null,null,null,null,"m=",{"$f":"K20","v":2.5},"kg",null,"h1=",null,"kJ/kg"]
[null,null,null,null,null,null,null,null,null,"T1=",{"$f":"K21","v":325},"K",null,"h2=",null,"kJ/kg"]
[null,null,null,null,null,null,null,null,null,"P1=",{"$f":"K22","v":250},"kPa",null,"T2=",null,"K"]
[null,null,null,null,null,null,null,null,null,"Q=",{"$f":"O23","v":0},"kJ"]